bitfinex/quotes_BTCUSD_20220207
["timestamp","ask_amount","ask_price","bid_price","bid_amount"]
[1644258215240,0.07725335,44271.0,44265.0,0.27609618]
[1644258215442,0.04,44269.0,44262.0,0.206443]
[1644258215641,0.26157132,44270.0,44261.0,0.45491]
[1644258215843,0.06586777,44264.0,44261.0,0.40491]
[1644258216054,0.04,44262.0,44261.0,0.40491]
[1644258216244,0.0852,44262.0,44261.0,0.40491]
[1644258216842,0.30022804,44262.0,44261.0,0.40491]
[1644258217046,0.0852,44262.0,44261.0,0.40491]
[1644258218092,0.15314767,44262.0,44261.0,0.39991]
[1644258218591,0.47482667,44262.0,44261.0,0.39991]
[1644258218791,0.67110601,44262.0,44261.0,0.39991]
[1644258219991,0.28147934,44262.0,44261.0,0.39991]
[1644258220993,0.36880776,44262.0,44261.0,0.39991]
[1644258221258,0.74048676,44262.0,44261.0,0.39991]
[1644258221445,0.85,44261.0,44258.0,0.00074984]
[1644258221647,0.361679,44259.0,44258.0,0.00074984]
[1644258221843,0.056516,44258.0,44253.0,0.00141288]
[1644258222042,0.04,44254.0,44253.0,0.00141288]
[1644258222247,0.31927048,44254.0,44253.0,0.00141288]
[1644258223146,0.0852,44254.0,44253.0,0.00141288]
[1644258223343,0.04,44254.0,44253.0,0.00141288]
[1644258224042,0.11302,44256.0,44253.0,0.00141288]
[1644258224043,0.05651,44255.0,44253.0,0.1919221]
[1644258224443,0.05651,44255.0,44254.0,0.01]
[1644258224643,0.198206,44260.0,44254.0,0.01]
[1644258224644,0.113006,44260.0,44254.0,0.01]
[1644258224845,0.113006,44260.0,44256.0,0.01]
[1644258225092,0.056501,44258.0,44256.0,0.01]
[1644258225292,0.096501,44258.0,44256.0,0.01]
[1644258225691,0.04,44257.0,44256.0,0.01]
[1644258225891,0.056501,44258.0,44255.0,0.00074987]
[1644258226291,0.04,44256.0,44255.0,0.00074987]
[1644258226693,0.04,44256.0,44253.0,0.00141288]
[1644258226892,0.04,44256.0,44253.0,0.00216277]
[1644258227292,0.21265945,44254.0,44253.0,0.00216277]
[1644258227892,0.21265945,44254.0,44253.0,0.00141288]
[1644258228493,0.61792265,44254.0,44253.0,0.00141288]
[1644258228768,0.66792265,44254.0,44253.0,0.00141288]
[1644258228959,0.71312265,44254.0,44253.0,0.00141288]
[1644258229162,0.62,44253.0,44251.0,0.1291385]
[1644258229361,0.406879,44252.0,44251.0,0.1291385]
[1644258229560,0.73679947,44252.0,44251.0,0.1291385]
[1644258229859,0.506879,44252.0,44251.0,0.1291385]
[1644258230261,0.21817936,44245.0,44244.0,0.02105585]
[1644258230460,0.66573865,44245.0,44244.0,0.02105585]
[1644258231862,0.04,44245.0,44244.0,0.02105585]
[1644258232262,0.113036,44247.0,44244.0,0.02105585]
[1644258232690,0.035,44246.0,44244.0,0.02105585]
[1644258232888,0.23117307,44246.0,44244.0,0.02105585]
[1644258233188,0.08851389,44245.0,44244.0,0.02105585]
[1644258233591,0.08851389,44245.0,44243.0,0.00074947]
[1644258233788,0.08851389,44245.0,44241.0,0.015]
[1644258233991,0.08851389,44245.0,44242.0,0.00074948]
[1644258233992,0.07851389,44245.0,44242.0,0.00074948]
[1644258234990,0.07851389,44245.0,44241.0,0.015]
[1644258235194,0.07851389,44245.0,44241.0,0.01574949]
[1644258235391,0.07851389,44245.0,44241.0,0.00074949]
[1644258236094,0.035,44243.0,44241.0,0.00074949]
[1644258236335,0.091518,44243.0,44240.0,0.0011]
[1644258236536,0.091518,44243.0,44241.0,0.0007495]
[1644258236936,0.035,44243.0,44242.0,0.36347838]
[1644258237139,0.16986,44250.0,44242.0,0.36347838]
[1644258237140,0.0003,44250.0,44242.0,0.37847838]
[1644258237338,0.0003,44250.0,44248.0,0.015]
[1644258237740,0.02113069,44250.0,44249.0,0.015]
[1644258239139,0.02113069,44250.0,44247.0,0.00074941]
[1644258239339,0.02113069,44250.0,44249.0,0.015]
[1644258239742,1.4946,44266.0,44250.0,0.85]
[1644258239989,0.2017,44273.0,44264.0,0.015]
[1644258239990,0.417,44273.0,44264.0,0.015]
[1644258240189,0.00028078,44270.0,44268.0,0.015]
[1644258240390,0.00028078,44272.0,44268.0,0.015]
[1644258240589,0.00028078,44273.0,44267.0,0.23028256]
[1644258240787,0.12,44269.0,44268.0,0.056475]
[1644258241192,0.12,44269.0,44267.0,0.23028256]
[1644258241193,0.11882068,44269.0,44267.0,0.23028256]
[1644258242190,0.11882068,44269.0,44261.0,0.112955]
[1644258242393,0.0796092,44264.0,44260.0,0.015]
[1644258242593,0.0796092,44264.0,44247.0,0.112961]
[1644258242594,0.035,44261.0,44258.0,0.00074931]
[1644258242995,0.321679,44260.0,44258.0,0.00074931]
[1644258243192,0.35018474,44259.0,44258.0,0.00074931]
[1644258243390,0.77186374,44259.0,44258.0,0.00074931]
[1644258243591,0.45018474,44259.0,44254.0,0.02160448]
[1644258243840,0.035,44257.0,44254.0,0.02160448]
[1644258244441,0.11702196,44257.0,44254.0,0.02160448]
[1644258244642,0.035,44257.0,44254.0,0.02160448]
[1644258244842,0.091505,44257.0,44254.0,0.02160448]
[1644258245240,0.38020376,44257.0,44254.0,0.02160448]
[1644258245644,0.38020376,44257.0,44251.0,0.01993843]
[1644258245645,0.08201264,44256.0,44251.0,0.01993843]
[1644258245843,0.25417194,44253.0,44251.0,0.01993843]
[1644258247044,0.035,44252.0,44251.0,0.01993843]
[1644258247691,0.085,44252.0,44250.0,0.0007488]
[1644258248493,0.085,44252.0,44247.0,0.0186744]
[1644258248694,0.085,44252.0,44249.0,0.00074882]
[1644258248895,0.85,44249.0,44242.0,0.00299572]
[1644258249099,0.035,44243.0,44242.0,0.00299572]
[1644258249299,0.401879,44243.0,44242.0,0.00299572]
[1644258249496,0.401879,44243.0,44242.0,9.572e-05]
[1644258249696,0.401879,44243.0,44231.0,0.0002707]
[1644258249697,0.551879,44243.0,44231.0,0.0002707]
[1644258249896,0.08729998,44241.0,44238.0,0.0002707]
[1644258250096,0.08729998,44241.0,44236.0,0.015]
[1644258250097,0.0452,44241.0,44236.0,0.015]
[1644258250295,0.0452,44241.0,44237.0,0.0002707]
[1644258250495,0.0452,44241.0,44237.0,0.0152707]
[1644258250694,0.0452,44241.0,44232.0,0.0002707]
[1644258251250,0.1652,44241.0,44232.0,0.0002707]
[1644258251443,0.486879,44241.0,44236.0,0.01876795]
[1644258251844,0.586879,44241.0,44237.0,0.0002707]
[1644258252043,0.486879,44241.0,44237.0,0.0002707]
[1644258252242,0.586879,44241.0,44238.0,0.00074603]
[1644258252442,0.586879,44241.0,44239.0,0.0002707]
[1644258252443,0.2652,44241.0,44239.0,0.0002707]
[1644258253146,0.586879,44241.0,44239.0,0.0002707]
[1644258253344,0.2652,44241.0,44239.0,0.0002707]
[1644258253546,0.2652,44241.0,44238.0,0.00074603]
[1644258253745,0.56993894,44241.0,44239.0,0.0002707]
[1644258254646,0.89161794,44241.0,44237.0,0.0002707]
[1644258254846,0.56993894,44241.0,44237.0,0.0002707]
[1644258256093,0.1652,44241.0,44237.0,0.0002707]
[1644258256491,0.521879,44241.0,44237.0,0.0002707]
[1644258256893,0.2002,44241.0,44237.0,0.0002707]
[1644258257091,0.2002,44241.0,44238.0,0.00074272]
[1644258257290,0.2002,44241.0,44239.0,0.0002707]
[1644258257894,0.2002,44241.0,44238.0,0.00101342]
[1644258258091,0.2002,44241.0,44238.0,0.0002707]
[1644258258295,0.2002,44241.0,44238.0,0.00074272]
[1644258258491,0.1652,44241.0,44238.0,0.00101342]
[1644258259336,0.1652,44241.0,44238.0,0.0002707]
[1644258259536,0.1652,44241.0,44238.0,0.00074545]
[1644258259736,0.1652,44241.0,44238.0,0.00101615]
[1644258260337,0.46295042,44241.0,44238.0,0.00101615]
[1644258260537,0.78462942,44241.0,44238.0,0.0002707]
[1644258260740,0.56295042,44241.0,44238.0,0.00074545]
[1644258260938,0.56295042,44241.0,44238.0,0.00101615]
[1644258261345,0.88462942,44241.0,44238.0,0.00101615]
[1644258261538,0.56295042,44241.0,44238.0,0.00101615]
[1644258261737,0.56295042,44241.0,44238.0,0.0002707]
[1644258261938,0.56295042,44241.0,44238.0,0.00074545]
[1644258262139,0.321679,44240.0,44238.0,0.00101615]
[1644258262340,0.0802,44239.0,44238.0,0.00074545]
[1644258262589,0.451879,44239.0,44238.0,0.00074545]
[1644258262888,0.551879,44239.0,44237.0,0.0002707]
[1644258263088,0.551879,44239.0,44236.0,0.02068515]
[1644258263089,0.321679,44238.0,44236.0,0.02068515]
[1644258263288,0.421679,44238.0,44236.0,0.02068515]
[1644258263688,0.421679,44238.0,44236.0,0.00074548]
[1644258264090,0.1,44238.0,44235.0,0.0002707]
[1644258264290,0.035,44236.0,44235.0,0.0007455]
[1644258264490,0.1302,44239.0,44235.0,0.0010162]
[1644258264690,0.085,44239.0,44235.0,0.0007455]
[1644258264890,0.085,44239.0,44237.0,0.23229275]
[1644258265090,0.056533,44240.0,44238.0,0.015]
[1644258266091,0.056533,44240.0,44237.0,0.0002707]
[1644258266342,0.056533,44240.0,44236.0,0.00074548]
[1644258266547,0.163066,44240.0,44234.0,0.00915468]
[1644258266740,0.035,44239.0,44236.0,0.00074548]
[1644258266942,0.07558464,44237.0,44236.0,0.00074548]
[1644258267141,0.07558464,44237.0,44236.0,0.19332564]
[1644258267340,0.07558464,44237.0,44236.0,0.00074548]
[1644258267743,0.05653,44236.0,44235.0,0.015]
[1644258268142,0.05653,44236.0,44234.0,0.0007455]
[1644258268644,0.05653,44236.0,44235.0,0.015]
[1644258268845,0.12,44241.0,44235.0,0.015]
[1644258269048,0.056526,44240.0,44237.0,0.015]
[1644258269644,0.26049767,44238.0,44237.0,0.015]
[1644258269994,0.26049767,44238.0,44233.0,0.00074552]
[1644258270193,0.26049767,44238.0,44235.0,0.00074549]
[1644258271196,0.26049767,44238.0,44232.0,0.23397936]
[1644258271598,0.26049767,44238.0,44234.0,0.0007455]
[1644258272497,0.25549767,44238.0,44237.0,0.015]
[1644258272697,0.25549767,44238.0,44234.0,0.00074551]
[1644258273598,0.25549767,44238.0,44232.0,0.24897936]
[1644258273838,0.25549767,44238.0,44234.0,0.00074551]
[1644258275539,0.056531,44236.0,44234.0,0.00074551]
[1644258276142,0.056531,44236.0,44232.0,0.015]
[1644258276338,0.056531,44236.0,44233.0,0.00074552]
[1644258276539,0.056531,44236.0,44233.0,0.21256805]
[1644258276943,0.056531,44236.0,44232.0,0.015]
[1644258277141,0.056531,44236.0,44231.0,0.015]
[1644258277990,0.056531,44236.0,44231.0,0.24094572]
[1644258278590,0.056531,44236.0,44234.0,0.26850696]
[1644258279390,0.056531,44236.0,44235.0,0.015]
[1644258280392,0.056531,44236.0,44234.0,0.26850696]
[1644258281438,0.056531,44236.0,44231.0,0.015]
[1644258281637,0.0742466,44233.0,44231.0,0.015]
[1644258282241,0.056532,44234.0,44231.0,0.015]
[1644258282438,0.056532,44234.0,44231.0,0.2155082]
[1644258283241,0.113065,44238.0,44231.0,0.2155082]
[1644258283438,0.113065,44238.0,44236.0,0.015]
[1644258284038,0.113065,44238.0,44236.0,0.27136393]
[1644258284239,0.113065,44238.0,44236.0,0.015]
[1644258286596,0.113065,44238.0,44233.0,0.015]
[1644258286597,0.20844564,44236.0,44233.0,0.015]
[1644258286996,0.26497764,44236.0,44234.0,0.015]
[1644258287195,0.08465436,44235.0,44231.0,0.01574609]
[1644258287795,0.26497764,44236.0,44231.0,0.01574609]
[1644258288196,0.26497764,44236.0,44231.0,0.015]
[1644258288396,0.26497764,44236.0,44231.0,0.01574608]
[1644258288846,0.080345,44234.0,44231.0,0.01574608]
[1644258289048,0.136879,44234.0,44231.0,0.01574608]
[1644258289251,0.136879,44234.0,44231.0,0.015]
[1644258289448,0.135043,44234.0,44231.0,0.015]
[1644258289649,0.135043,44234.0,44231.0,0.00026342]
[1644258289852,0.035,44232.0,44230.0,0.00066147]
[1644258290052,0.148088,44232.0,44230.0,0.00066147]
[1644258290452,0.148088,44232.0,44229.0,0.00026342]
[1644258290453,0.20463126,44232.0,44229.0,0.00026342]
[1644258290648,0.20463126,44232.0,44229.0,0.00066149]
[1644258290850,0.20463126,44232.0,44229.0,0.00092491]
[1644258291449,0.26117126,44232.0,44229.0,0.00092491]
[1644258291648,0.26117126,44232.0,44229.0,0.00026342]
[1644258291849,0.106539,44231.0,44228.0,0.0156615]
[1644258292893,0.056539,44231.0,44228.0,0.23245769]
[1644258293393,0.056539,44231.0,44228.0,0.23272111]
[1644258293794,0.056539,44231.0,44230.0,0.19081396]
[1644258293996,0.056539,44231.0,44229.0,0.00026342]
[1644258294195,0.056539,44231.0,44228.0,0.23272111]
[1644258294393,0.056539,44231.0,44228.0,0.2332038]
[1644258294792,0.056539,44231.0,44228.0,0.01574611]
[1644258295394,0.056539,44231.0,44228.0,0.015]
[1644258295593,0.041119,44231.0,44228.0,0.015]
[1644258295795,0.161119,44231.0,44228.0,0.01526342]
[1644258296654,0.161119,44231.0,44228.0,0.015]
[1644258297053,0.161119,44231.0,44228.0,0.01526342]
[1644258297455,0.25827436,44230.0,44228.0,0.01526342]
[1644258297657,0.25827436,44230.0,44228.0,0.015]
[1644258299655,0.035,44229.0,44227.0,0.00100955]
[1644258299856,0.091542,44229.0,44227.0,0.00074613]
[1644258300097,0.056542,44229.0,44226.0,0.00026342]
[1644258300297,0.056543,44228.0,44226.0,0.00074614]
[1644258300599,0.091543,44228.0,44227.0,0.015]
[1644258301002,0.056543,44228.0,44227.0,0.015]
[1644258301605,0.12,44231.0,44227.0,0.015]
[1644258301799,0.12,44231.0,44230.0,0.015]
[1644258301999,0.12,44231.0,44230.0,0.0602]
[1644258302399,0.12,44231.0,44230.0,0.58996238]
[1644258302600,0.12,44231.0,44230.0,0.38044073]
[1644258302801,0.12,44231.0,44230.0,0.43044073]
[1644258303400,0.12,44231.0,44230.0,0.38044073]
[1644258304643,0.12,44231.0,44230.0,0.66710694]
[1644258304843,0.12,44231.0,44230.0,0.38044073]
[1644258305443,0.11969883,44231.0,44230.0,0.116725]
[1644258306046,0.11969883,44231.0,44230.0,0.015]
[1644258306445,0.11969883,44231.0,44230.0,0.20681907]
[1644258307145,0.11969883,44231.0,44230.0,0.55879168]
[1644258307345,0.11969883,44231.0,44230.0,0.84483428]
[1644258310496,0.11969883,44231.0,44230.0,0.55879168]
[1644258310695,0.11791265,44231.0,44230.0,0.55879168]
[1644258311098,0.11791265,44231.0,44230.0,0.36697261]
[1644258311345,0.11791265,44231.0,44229.0,0.00026342]
[1644258311541,0.11791265,44231.0,44228.0,0.00098153]
[1644258311739,0.17444765,44231.0,44228.0,0.00098153]
[1644258312241,0.035,44230.0,44228.0,0.00026342]
[1644258312442,0.25950829,44229.0,44227.0,0.0007174]
[1644258312638,0.035,44230.0,44227.0,0.00098082]
[1644258312839,0.035,44230.0,44227.0,0.0007174]
[1644258313040,0.08886522,44228.0,44227.0,0.00098082]
[1644258313238,0.08886522,44228.0,44227.0,0.0007174]
[1644258313442,0.056539,44228.0,44225.0,0.00026342]
[1644258313638,0.056539,44228.0,44225.0,0.00071743]
[1644258313839,0.056539,44228.0,44224.0,0.99708085]
[1644258314039,0.23503829,44227.0,44224.0,0.59164167]
[1644258314244,0.23503829,44227.0,44223.0,0.0011]
[1644258314245,0.28023829,44227.0,44223.0,0.0011]
[1644258314451,0.55570553,44226.0,44223.0,0.0011]
[1644258314744,0.55570553,44226.0,44210.0,0.0011]
[1644258314745,0.00329999,44220.0,44210.0,0.0011]
[1644258315007,0.5654,44218.0,44210.0,0.0011]
[1644258315204,0.0452,44217.0,44210.0,0.0011]
[1644258315407,0.21480395,44211.0,44210.0,0.0011]
[1644258315605,0.25923515,44211.0,44210.0,0.0011]
[1644258315906,0.85,44209.0,44193.0,0.00081592]
[1644258316112,0.12858896,44194.0,44193.0,0.00081592]
[1644258316308,0.54546796,44194.0,44193.0,0.00081592]
[1644258316803,0.416879,44194.0,44193.0,0.00081592]
[1644258317004,0.05,44206.0,44193.0,0.00081592]
[1644258317203,0.6199,44207.0,44193.0,0.00081592]
[1644258317402,0.05,44202.0,44193.0,0.00081592]
[1644258317602,0.6199,44207.0,44193.0,0.00081592]
[1644258317603,0.07968743,44195.0,44193.0,0.00081592]
[1644258317804,0.6199,44207.0,44193.0,0.00081592]
[1644258317805,0.21948417,44200.0,44193.0,0.00081592]
[1644258318002,0.056583,44199.0,44193.0,0.00081592]
[1644258318202,0.4131568,44206.0,44193.0,0.00081592]
[1644258318402,0.9199,44207.0,44194.0,0.00056258]
[1644258318602,0.6199,44207.0,44195.0,0.25434488]
[1644258318850,0.05,44213.0,44195.0,0.25434488]
[1644258319047,0.356566,44212.0,44195.0,0.30434488]
[1644258319249,0.356566,44212.0,44198.0,0.33183186]
[1644258319250,0.2140184,44208.0,44198.0,0.33183186]
[1644258319446,0.2140184,44208.0,44198.0,0.32683186]
[1644258319747,0.2140184,44208.0,44204.0,0.19478193]
[1644258319946,0.2140184,44208.0,44201.0,0.00074624]
[1644258319947,0.06828017,44207.0,44201.0,0.00074624]
[1644258320147,0.05,44202.0,44201.0,0.00074624]
[1644258320347,0.371679,44202.0,44201.0,0.00074624]
[1644258320547,0.371679,44202.0,44199.0,0.00081592]
[1644258320749,0.22662189,44200.0,44199.0,0.00156218]
[1644258321249,0.62036176,44200.0,44199.0,0.00156218]
[1644258321453,0.67036176,44200.0,44199.0,0.00156218]
[1644258321649,0.92684324,44200.0,44199.0,0.00156218]
[1644258321852,0.62036176,44200.0,44199.0,0.00081592]
[1644258322252,0.92444477,44200.0,44199.0,0.00081592]
[1644258322505,1.23511,44200.0,44199.0,0.00081592]
[1644258322702,1.23511,44200.0,44191.0,0.01047302]
[1644258322703,1.2294362,44200.0,44191.0,0.01047302]
[1644258322903,0.10659583,44192.0,44191.0,0.01047302]
[1644258323102,0.50836689,44192.0,44191.0,0.00748742]
[1644258323504,0.70784302,44192.0,44191.0,0.00748742]
[1644258323703,0.70784302,44192.0,44191.0,0.00248742]
[1644258323903,0.80784302,44192.0,44191.0,0.00248742]
[1644258324107,0.80784302,44192.0,44182.0,0.02594027]
[1644258324108,0.75784302,44192.0,44182.0,0.02594027]
[1644258324304,0.05,44189.0,44182.0,0.02594027]
[1644258324504,0.371679,44189.0,44182.0,0.02594027]
[1644258324803,0.15,44189.0,44182.0,0.02594027]
[1644258325004,0.15,44189.0,44188.0,0.015]
[1644258325005,0.05,44189.0,44188.0,0.015]
[1644258325204,0.32956819,44192.0,44182.0,0.02594027]
[1644258325404,0.371679,44186.0,44182.0,0.02594027]
[1644258325804,0.1550122,44190.0,44182.0,0.02594027]
[1644258326003,0.15,44192.0,44182.0,0.02594027]
[1644258326444,0.106591,44192.0,44182.0,0.02594027]
[1644258326647,0.27781641,44191.0,44182.0,0.02594027]
[1644258326844,0.38441402,44191.0,44186.0,0.00074664]
[1644258327047,0.321679,44190.0,44186.0,0.00074664]
[1644258327244,0.05,44187.0,44186.0,0.00074664]
[1644258327443,0.38441402,44191.0,44186.0,0.00074664]
[1644258327444,0.43441402,44191.0,44186.0,0.00074664]
[1644258327645,0.056599,44188.0,44186.0,0.00074664]
[1644258327845,0.056599,44188.0,44182.0,0.00489648]
[1644258328046,0.056599,44188.0,44186.0,0.00074664]
[1644258328645,0.07123002,44187.0,44186.0,0.00074664]
[1644258328846,0.12123002,44187.0,44186.0,0.00074664]
[1644258329046,0.12123002,44187.0,44182.0,0.00489648]
[1644258329248,0.17123002,44187.0,44184.0,0.00294667]
[1644258329446,0.321679,44186.0,44184.0,0.00294667]
[1644258329990,0.321679,44186.0,44184.0,0.00320549]
[1644258330194,0.17123002,44187.0,44184.0,0.00245882]
[1644258330406,0.321679,44186.0,44184.0,0.00245882]
[1644258330593,0.17123002,44187.0,44184.0,0.00245882]
[1644258330594,0.24123002,44187.0,44184.0,0.00245882]
[1644258331398,0.05,44186.0,44184.0,0.00245882]
[1644258331594,0.371679,44186.0,44184.0,0.00245882]
[1644258331993,0.1550122,44186.0,44184.0,0.00245882]
[1644258332193,0.29938524,44186.0,44184.0,0.00245882]
[1644258332595,0.24123002,44187.0,44184.0,0.00245882]
[1644258332894,0.19153002,44187.0,44184.0,0.00245882]
[1644258333296,0.2918552,44186.0,44184.0,0.00245882]
[1644258333494,0.6635342,44186.0,44184.0,0.00245882]
[1644258333752,0.7635342,44186.0,44184.0,0.00245882]
[1644258333946,0.471679,44186.0,44184.0,0.00245882]
[1644258334748,0.77105274,44186.0,44184.0,0.00245882]
[1644258335249,0.92606494,44186.0,44184.0,0.00245882]
[1644258335448,0.77105274,44186.0,44184.0,0.00245882]
[1644258335649,0.92606494,44186.0,44184.0,0.00245882]
[1644258336450,0.97606494,44186.0,44184.0,0.00135882]
[1644258336654,0.33708891,44185.0,44184.0,0.0011]
[1644258336855,0.056611,44179.0,44165.0,0.22362338]
[1644258337052,0.21162309,44185.0,44165.0,0.22362338]
[1644258337253,0.056606,44179.0,44165.0,0.00047608]
[1644258337494,0.26949213,44179.0,44172.0,0.23153002]
[1644258337697,0.35661089,44185.0,44172.0,0.22593002]
[1644258337698,0.3,44185.0,44172.0,0.22593002]
[1644258337893,0.2682242,44186.0,44172.0,0.22593002]
[1644258338094,0.02129045,44185.0,44172.0,0.22593002]
[1644258338294,0.02129045,44185.0,44172.0,0.27593002]
[1644258338695,0.02129045,44185.0,44182.0,0.24199178]
[1644258338897,0.02129045,44185.0,44183.0,0.0452]
[1644258339496,0.01784057,44185.0,44183.0,0.0452]
[1644258340095,0.0003,44186.0,44183.0,0.0452]
[1644258340096,0.00093148,44186.0,44183.0,0.0452]
[1644258340600,0.0003196,44186.0,44183.0,0.0452]
[1644258340997,0.12,44187.0,44183.0,0.0452]
[1644258341256,0.12,44187.0,44184.0,0.21190632]
[1644258341644,0.12,44187.0,44183.0,0.0452]
[1644258342545,0.12,44187.0,44183.0,0.27233032]
[1644258343347,0.12,44187.0,44183.0,0.0452]
[1644258344748,0.11969681,44187.0,44183.0,0.044199]
[1644258345003,0.37395338,44187.0,44183.0,0.044199]
[1644258345202,0.056599,44184.0,44177.0,0.00074403]
[1644258345802,0.056599,44184.0,44176.0,0.01880934]
[1644258346004,0.056599,44184.0,44177.0,0.00074401]
[1644258346209,0.05,44178.0,44177.0,0.00074401]
[1644258346407,0.321679,44178.0,44177.0,0.00074401]
[1644258346806,0.056609,44179.0,44177.0,0.00074401]
[1644258347006,0.26910667,44179.0,44174.0,0.00047608]
[1644258348009,0.05,44177.0,44174.0,0.00047608]
[1644258348408,0.61350207,44178.0,44174.0,0.00047608]
[1644258348608,0.05,44177.0,44174.0,0.00047608]
[1644258348854,0.29182307,44178.0,44174.0,0.00047608]
[1644258349050,0.056609,44179.0,44174.0,0.00047608]
[1644258349449,0.1,44180.0,44174.0,0.00047608]
[1644258349650,0.1,44180.0,44174.0,0.00121954]
[1644258350252,0.003,44178.0,44174.0,0.00121954]
[1644258350650,0.003,44178.0,44174.0,0.00047608]
[1644258350853,0.003,44178.0,44174.0,0.00121955]
[1644258351051,0.05,44177.0,44174.0,0.00121955]
[1644258351657,0.321679,44176.0,44174.0,0.00121955]
[1644258351851,0.321679,44176.0,44174.0,0.00047608]
[1644258353893,0.05660904,44177.0,44174.0,0.00047608]
[1644258353894,0.81490409,44175.0,44174.0,0.00047608]
[1644258354093,0.321679,44175.0,44174.0,0.00072816]
[1644258354294,0.05660904,44177.0,44174.0,0.00047608]
[1644258354494,0.05660904,44177.0,44174.0,0.00072816]
[1644258354694,0.29139274,44176.0,44174.0,0.00047608]
[1644258355099,0.05660904,44177.0,44174.0,0.00047608]
[1644258355696,0.321679,44176.0,44174.0,0.00047608]
[1644258355996,0.05660904,44177.0,44174.0,0.00072816]
[1644258356251,0.05660904,44177.0,44174.0,0.00047608]
[1644258356445,0.05660904,44177.0,44174.0,0.00072816]
[1644258356645,0.321679,44176.0,44174.0,0.00072816]
[1644258356845,0.321679,44176.0,44174.0,0.00047608]
[1644258357350,0.05,44175.0,44174.0,0.00047608]
[1644258357652,0.05,44175.0,44165.0,0.00109944]
[1644258357653,0.321679,44171.0,44165.0,0.00109944]
[1644258357849,0.49129958,44170.0,44168.0,0.00025208]
[1644258358152,0.49129958,44170.0,44158.0,0.00022162]
[1644258358153,0.85,44165.0,44158.0,0.00022162]
[1644258358348,0.423518,44164.0,44157.0,0.00044324]
[1644258358547,0.05,44163.0,44157.0,0.00044324]
[1644258358748,0.43495059,44161.0,44157.0,0.00044324]
[1644258358948,0.11327159,44161.0,44157.0,0.00044324]
[1644258359148,0.321679,44159.0,44157.0,0.00044324]
[1644258359448,0.05,44158.0,44157.0,0.00044324]
[1644258359648,0.321679,44159.0,44157.0,0.00044324]
[1644258360100,0.321679,44159.0,44150.0,0.0021]
[1644258360101,0.45,44158.0,44151.0,0.00534448]
[1644258360305,0.6749079,44158.0,44157.0,0.00088648]
[1644258360500,0.9965869,44158.0,44157.0,0.00088648]
[1644258360902,0.47671962,44158.0,44157.0,0.00088648]
[1644258361204,0.15504062,44158.0,44157.0,0.00088648]
[1644258361402,0.85,44158.0,44151.0,0.00123096]
[1644258361602,0.05663531,44155.0,44151.0,0.00123096]
[1644258362302,0.05663531,44155.0,44149.0,0.0011]
[1644258362502,0.371679,44154.0,44149.0,0.0011]
[1644258362702,0.428321,44154.0,44149.0,0.0011]
[1644258362906,0.05663531,44155.0,44150.0,0.0007426]
[1644258363948,0.82725967,44155.0,44146.0,0.00042797]
[1644258364246,0.19725967,44155.0,44144.0,0.96196702]
[1644258365247,0.2243388,44154.0,44144.0,0.96196702]
[1644258365648,0.6243388,44154.0,44144.0,0.96196702]
[1644258365848,0.10664707,44148.0,44144.0,0.96196702]
[1644258366050,0.10664707,44148.0,44144.0,0.95696702]
[1644258366253,0.05664707,44148.0,44144.0,0.95696702]
[1644258366648,0.05664707,44148.0,44144.0,0.95196702]
[1644258366649,1.80598,44148.0,44144.0,0.95196702]
[1644258366847,0.321679,44147.0,44144.0,0.95196702]
[1644258367050,0.321679,44146.0,44144.0,0.95196702]
[1644258367249,0.05665,44149.0,44144.0,0.95196702]
[1644258367498,0.05,44148.0,44144.0,0.95196702]
[1644258367695,0.35231567,44152.0,44144.0,0.95196702]
[1644258367696,0.321679,44147.0,44144.0,0.95196702]
[1644258367897,0.05,44152.0,44144.0,0.95270681]
[1644258368798,0.05,44152.0,44144.0,1.18461212]
[1644258368997,0.321679,44151.0,44146.0,0.00073977]
[1644258369899,0.01871952,44153.0,44145.0,0.05]
[1644258370102,0.01835973,44151.0,44145.0,0.1452]
[1644258370302,0.01835973,44151.0,44146.0,0.05073977]
[1644258370709,0.01835973,44151.0,44146.0,0.00073977]
[1644258370900,0.01835973,44151.0,44147.0,0.53530936]
[1644258371101,0.01835973,44151.0,44149.0,0.05]
[1644258371343,0.01835973,44151.0,44150.0,0.0452]
[1644258371945,0.13182811,44151.0,44147.0,0.00073976]
[1644258372143,0.08182811,44151.0,44147.0,0.00073976]
[1644258372343,0.08182811,44151.0,44144.0,0.95196702]
[1644258372344,0.06346838,44151.0,44144.0,0.95196702]
[1644258372543,0.0566397,44153.0,44144.0,0.95196702]
[1644258372745,0.19165697,44155.0,44144.0,0.95196702]
[1644258373347,0.05664106,44147.0,44144.0,0.95196702]
[1644258373543,0.10664106,44147.0,44144.0,0.95196702]
[1644258375986,0.18753846,44146.0,44144.0,0.95196702]
[1644258376781,0.42695869,44146.0,44144.0,0.95196702]
[1644258376981,0.07424319,44146.0,44144.0,0.95196702]
[1644258378180,0.18754092,44146.0,44144.0,0.95196702]
[1644258379035,0.18754092,44146.0,44144.0,0.94196702]
[1644258379232,0.07424319,44146.0,44144.0,0.94196702]
[1644258379433,0.321679,44145.0,44144.0,0.94196702]
[1644258379932,0.07424319,44146.0,44144.0,0.93696702]
[1644258380133,0.42841458,44147.0,44144.0,0.93696702]
[1644258380332,0.42841458,44147.0,44144.0,0.93721813]
[1644258380535,0.37176558,44147.0,44144.0,0.93721813]
[1644258380733,0.42176558,44147.0,44144.0,0.93721813]
[1644258381139,0.06300946,44146.0,44144.0,0.93721813]
[1644258381334,0.06300946,44146.0,44144.0,0.93696702]
[1644258381735,0.06300946,44146.0,44144.0,0.93396702]
[1644258381936,0.10664106,44147.0,44144.0,0.93396702]
[1644258382137,0.05,44147.0,44144.0,0.93421813]
[1644258383181,0.0683283,44145.0,44144.0,0.93421813]
[1644258383382,0.0683283,44145.0,44144.0,0.93396702]
[1644258383581,0.10664634,44147.0,44144.0,0.93396702]
[1644258383785,0.10664634,44147.0,44144.0,0.93421813]
[1644258383982,0.05,44147.0,44144.0,0.93421813]
[1644258385382,0.12,44147.0,44144.0,0.93421813]
[1644258385982,0.12,44147.0,44145.0,0.0452]
[1644258386243,0.17,44147.0,44145.0,0.0452]
[1644258386632,0.17,44147.0,44144.0,0.93421813]